[Event "Mitropa Cup Women 2024"]
[Site "Apolda"]
[Date "2024.02.15"]
[Round "1.1"]
[White "Heinemann, Josefine"]
[Black "Brunello, Marina"]
[Result "1/2-1/2"]
[ECO "A20"]
[WhiteElo "2361"]
[BlackElo "2345"]
[Annotator "TA"]
[PlyCount "63"]
[EventDate "2024.02.15"]
[EventType "team-tourn"]
[EventCountry "GER"]
[SourceTitle "playchess.com"]
[Source "ChessBase"]
[SourceQuality "1"]
[WhiteTeam "Germany"]
[BlackTeam "Italy"]
[WhiteTeamCountry "GER"]
[BlackTeamCountry "ITA"]
[TimeControl "40/5400+30:1800+30"]

{[%evp 9,63,13,19,17,8,23,12,33,47,39,37,16,50,42,49,14,20,27,18,24,32,31,32,16,0,0,29,36,33,32,25,22,42,39,39,20,16,23,18,10,7,0,1,0,0,0,0,0,2,0,0,0,0,0,0,0]} 1. c4 {[%emt 0:00:05]} e5 {[%emt 0:00:25]} 2. g3 {[%emt 0:00:20]} Nf6 {[%emt 0:00:42]} 3. Bg2 {[%emt 0:00:10]} c6 {[%emt 0:00:04]} 4. Nf3 {[%emt 0:01:04]} e4 {[%emt 0:00:16]} 5. Nd4 {[%emt 0:00:06][%cal Bf3d4,Bd4b3,Bb3d2,Bd2e4][%mdl 32]} Qb6 {[%emt 0:01:08]} 6. Nb3 {[%emt 0:01:11]} a5 {[%emt 0:06:08][%cal Ba7a5,Ba5a4][%mdl 32] [#] Und jetzt ...a4 wäre schön.} 7. d3 {[%emt 0:00:19]} a4 {[%emt 0:00:21]} 8. N3d2 {[%emt 0:00:15]} Bc5 {[%emt 0:00:06]} 9. O-O {[%emt 0:00:34]} e3 {[%emt 0:00:08]} 10. fxe3 {[%emt 0:00:09]} Bxe3+ {[%emt 0:00:51]} 11. Kh1 {[%emt 0:00:06][%cal Of1f6]} Ng4 {[%emt 0:01:42]} 12. Ne4 {[%emt 0:00:21]} O-O {[%emt 0:07:02] Und ...d5 würde nun gewinnen.} 13. Nbc3 {[%emt 0:00:39]} d5 {[%emt 0:19:00]} 14. cxd5 {[%emt 0:01:31]} (14. Nxa4 $2 Rxa4 15. Qxa4 dxe4 $19) 14... Bxc1 {[%emt 0:00:05]} 15. Qxc1 {[%emt 0:00:12]} ({Natürlich nicht} 15. Rxc1 Ne3 16. Qd2 (16. Nxa4 $2 Qa7 $19) 16... cxd5 $17 (16... Nxf1 17. Rxf1 Nd7 18. d4 $15)) 15... Ne3 {[%emt 0:00:06]} 16. Rf3 {[%emt 0:00:31]} Nxd5 {[%emt 0:01:05]} 17. Qd2 {[%emt 0:00:35]} Bg4 {[%emt 0:05:10]} 18. Nxd5 {[%emt 0:01:45]} cxd5 {[%emt 0:00:26]} 19. Rf4 {[%emt 0:00:11] [#] Nf6+ wäre nun fies.} Be6 {[%emt 0:01:40]} 20. Ng5 {[%emt 0:08:10]} Nc6 {[%emt 0:09:11]} (20... h6 {vereinfacht} 21. Nxe6 Qxe6 22. Rd4 Rd8) 21. Raf1 {[%emt 0:09:05]} (21. Nxe6 {vereinfacht} fxe6 22. Bh3 Nd4 23. Raf1) 21... Qc5 {[%emt 0:06:15]} 22. d4 {[%emt 0:08:28]} Qe7 {[%emt 0:07:19]} 23. Nxe6 {[%emt 0:09:09]} fxe6 {[%emt 0:00:54]} 24. e4 {[%emt 0:01:14] Die Stellung ist ausgeglichen.} dxe4 {[%emt 0:05:53]} 25. Bxe4 {[%emt 0:01:14]} Rxf4 {[%emt 0:00:11]} 26. Qxf4 {[%emt 0:01:19]} Nxd4 {[%emt 0:04:14]} 27. Bxh7+ {[%emt 0:02:08]} Kxh7 {[%emt 0:00:05]} 28. Qxd4 $11 {[%emt 0:00:05] KQR-KQR} a3 {[%emt 0:02:02]} 29. bxa3 {[%emt 0:01:56]} Rxa3 {[%emt 0:00:43]} 30. Rf2 {[%emt 0:01:56]} Kg8 {[%emt 0:05:12]} 31. Qe4 {[%emt 0:03:44]} Qd7 {[%emt 0:02:33]} 32. Kg2 {[%emt 0:04:57] Gewichteter Fehlerwert: Weiß=0.03 (makellos) /Schwarz=0.03 (makellos) .  Ungenau:       	---       	Schwarz=2     OK:         	Weiß=14    	Schwarz=13    Bester:       	Weiß=1     	Schwarz=2} 1/2-1/2

[Event "Mitropa Cup Women 2024"]
[Site "Apolda"]
[Date "2024.02.15"]
[Round "1.2"]
[White "Zimina, Olga"]
[Black "Schneider, Jana"]
[Result "0-1"]
[ECO "D30"]
[WhiteElo "2291"]
[BlackElo "2331"]
[Annotator "TA"]
[PlyCount "54"]
[EventDate "2024.02.15"]
[EventType "team-tourn"]
[EventCountry "GER"]
[SourceTitle "playchess.com"]
[Source "ChessBase"]
[SourceQuality "1"]
[WhiteTeam "Italy"]
[BlackTeam "Germany"]
[WhiteTeamCountry "ITA"]
[BlackTeamCountry "GER"]
[TimeControl "40/5400+30:1800+30"]

{[%evp 9,54,-13,0,0,6,0,13,0,0,0,11,0,60,8,0,-88,-98,-94,-105,-125,-119,-232,-209,-318,-318,-318,-270,-583,-547,-558,-535,-547,-565,-594,-562,-783,-775,-700,-610,-666,-663,-676,-601,-912,-886,-895,-868]} 1. d4 {[%emt 0:00:10]} d5 {[%emt 0:00:12]} 2. Nf3 {[%emt 0:00:10]} Nf6 {[%emt 0:00:11]} 3. c4 {[%emt 0:00:06]} e6 {[%emt 0:00:08]} 4. Qc2 {[%emt 0:00:06]} Be7 {[%emt 0:03:16]} 5. g3 {[%emt 0:00:18]} c5 {[%emt 0:01:26]} 6. dxc5 {[%emt 0:02:32]} d4 {[%emt 0:00:24][%cal Ob8c6]} 7. a3 {[%emt 0:02:18]} a5 {[%emt 0:02:47][%cal Ob8c6]} 8. Bg2 {[%emt 0:03:56] The position is equal.} Nc6 {[%emt 0:01:21][%cal Oe6e5,Bb8c6,Bc6d4,Bd4b3,Bb3a1][%mdl 32]} 9. O-O {[%emt 0:09:13]} e5 {[%emt 0:06:36][%cal Of6d7]} 10. Rd1 {[%emt 0:00:54]} e4 {[%emt 0:09:06]} (10... Qc7 $11) 11. Ng5 {[%emt 0:07:24]} (11. Ne1 $1 $14) 11... d3 $1 $11 {[%emt 0:00:35]} 12. exd3 {[%emt 0:05:22] [#]} (12. Nxe4 $2 dxc2 13. Rxd8+ Kxd8 $19) (12. Qd2 $1 $11 {keeps the balance.} Nd4 13. Nc3 (13. exd3 Nb3 $17) (13. Nxe4 dxe2 14. Re1 Nxe4 $15)) 12... Nd4 $1 $17 {[%emt 0:00:19] White is on the road to losing.} 13. Qd2 {[%emt 0:00:14]} (13. dxe4 $2 {is the wrong capture.} Nxc2 14. Rxd8+ Bxd8 $19) 13... Nb3 $36 {[%emt 0:01:38][%mdl 2048] Black has strong initiative.} 14. Qe1 {[%emt 0:18:10][%cal Od3e4]} Bg4 {[%emt 0:08:18]} (14... exd3 15. c6 O-O 16. cxb7 Bxb7 17. Bxb7 $11) 15. Rd2 {[%emt 0:04:39]} Nxa1 $19 {[%emt 0:17:55]} 16. dxe4 {[%emt 0:00:20]} (16. h3 {was called for.} e3 17. fxe3) 16... Nd7 {[%emt 0:00:13]} 17. Rd5 {[%emt 0:05:51]} O-O {[%emt 0:02:49]} ({Weaker is} 17... Bxc5 18. e5 $17) 18. Be3 $2 {[%emt 0:06:41]} (18. b4) 18... Nc2 {[%emt 0:01:10] Black is clearly winning.} 19. Qc3 {[%emt 0:00:23]} Nxe3 {[%emt 0:00:29]} 20. Qxe3 {[%emt 0:00:05]} Be6 {[%emt 0:02:47]} 21. Nxe6 {[%emt 0:00:47]} fxe6 {[%emt 0:00:02]} 22. Rd2 {[%emt 0:00:10]} Bxc5 {[%emt 0:00:46]} 23. Qc3 {[%emt 0:03:20]} Qe7 {[%emt 0:02:32]} 24. Kf1 {[%emt 0:02:15]} Nf6 {[%emt 0:01:21]} 25. h3 {[%emt 0:00:05] Inhibits Ng4.} Rad8 {[%emt 0:01:31]} 26. e5 {[%emt 0:00:47]} Rxd2 {[%emt 0:02:29]} 27. Nxd2 {[%emt 0:00:53] [#]} Ng4 $1 {[%emt 0:01:04][%mdl 512] Weighted Error Value: White=0.68/Black=0.18 (very precise) .  Mistake:       	White=5     	Black=1      Inaccurate:     	White=1     	---        OK:         	White=5     	Black=5      Best:        	---       	Black=4      Strong:       	---       	Black=2} 0-1

[Event "Mitropa Cup Women 2024"]
[Site "Apolda"]
[Date "2024.02.15"]
[Round "1.3"]
[White "Schulze, Lara"]
[Black "Gueci, Tea"]
[Result "1-0"]
[ECO "B30"]
[WhiteElo "2285"]
[BlackElo "2193"]
[Annotator "NA RC"]
[PlyCount "85"]
[EventDate "2024.02.15"]
[EventType "team-tourn"]
[EventCountry "GER"]
[SourceTitle "playchess.com"]
[Source "ChessBase"]
[SourceQuality "1"]
[WhiteTeam "Germany"]
[BlackTeam "Italy"]
[WhiteTeamCountry "GER"]
[BlackTeamCountry "ITA"]
[TimeControl "40/5400+30:1800+30"]

1. e4 {[%emt 0:00:02]} c5 {[%emt 0:00:04]} 2. Nf3 {[%emt 0:00:07]} Nc6 {[%emt 0:00:04]} 3. Bb5 {[%emt 0:00:12]} e5 {[%emt 0:00:12]} 4. O-O {[%emt 0:00:29]} Bd6 {[%emt 0:00:04]} 5. d3 {[%emt 0:00:46]} a6 {[%emt 0:02:07]} 6. Bc4 {[%emt 0:05:02]} Nf6 {[%emt 0:01:20]} 7. Nc3 {[%emt 0:03:58]} b5 {[%emt 0:08:34]} 8. Bb3 {[%emt 0:09:58]} h6 {[%emt 0:07:25]} 9. Nd5 {[%emt 0:08:23]} O-O {[%emt 0:11:02]} 10. Be3 {[%emt 0:06:28]} Nxd5 {[%emt 0:05:26]} 11. Bxd5 {[%emt 0:02:17]} Rb8 {[%emt 0:02:13]} 12. Nd2 {[%emt 0:04:19]} Ne7 {[%emt 0:05:17]} 13. Bb3 {[%emt 0:07:09]} Ng6 {[%emt 0:02:57]} 14. Qh5 {[%emt 0:03:59]} Qf6 {[%emt 0:04:51]} 15. Qf5 {[%emt 0:09:23]} Kh7 {[%emt 0:08:06]} 16. Qxf6 {[%emt 0:02:32]} gxf6 {[%emt 0:00:09]} 17. a4 {[%emt 0:01:57]} Bb7 {[%emt 0:04:25]} 18. f3 {[%emt 0:07:38]} Be7 {[%emt 0:04:45]} 19. axb5 {[%emt 0:06:10]} axb5 {[%emt 0:00:05]} 20. Ra7 {[%emt 0:00:32]} d6 {[%emt 0:03:20]} 21. Rfa1 {[%emt 0:01:41]} Bd8 {[%emt 0:01:16]} 22. Nf1 {[%emt 0:01:56]} Bb6 {[%emt 0:03:09]} 23. R7a2 {[%emt 0:00:05]} f5 {[%emt 0:06:47]} 24. exf5 {[%emt 0:02:00]} Nh4 {[%emt 0:00:10]} 25. Ng3 {[%emt 0:02:52]} d5 {[%emt 0:00:35]} 26. c4 {[%emt 0:02:03]} bxc4 {[%emt 0:06:03]} 27. dxc4 {[%emt 0:00:04]} d4 {[%emt 0:01:31]} 28. Bf2 {[%emt 0:00:02]} Rfd8 {[%emt 0:01:45]} 29. Rd1 {[%emt 0:05:42]} d3 {[%emt 0:02:49]} 30. Ba4 {[%emt 0:00:35]} Ra8 {[%emt 0:02:28]} 31. b4 {[%emt 0:02:36]} Rac8 {[%emt 0:03:02]} 32. Rad2 {[%emt 0:04:23]} Bxf3 {[%emt 0:04:29]} 33. gxf3 {[%emt 0:00:17]} Nxf3+ {[%emt 0:00:00]} 34. Kg2 {[%emt 0:00:12]} Nxd2 {[%emt 0:00:00]} 35. Rxd2 {[%emt 0:00:00]} Ra8 {[%emt 0:00:46]} 36. Bc6 {[%emt 0:01:54]} Ra3 {[%emt 0:00:03]} 37. Ne4 {[%emt 0:00:35]} Rc8 {[%emt 0:00:58]} 38. Bd5 {[%emt 0:00:19]} cxb4 {[%emt 0:00:34]} 39. Bxb6 {[%emt 0:00:06]} b3 {[%emt 0:00:16]} 40. c5 {[%emt 0:00:58]} Rg8+ {[%emt 0:00:36]} 41. Kf2 {[%emt 0:05:15]} Ra2 {[%emt 0:03:22]} 42. Rxa2 {[%emt 0:02:06]} bxa2 {[%emt 0:00:05]} 43. Bxa2 {[%emt 0:00:11]} 1-0

[Event "Mitropa Cup Women 2024"]
[Site "Apolda"]
[Date "2024.02.15"]
[Round "1.4"]
[White "Cassi, Elisa"]
[Black "Dolzhykova, Kateryna"]
[Result "0-1"]
[ECO "A07"]
[WhiteElo "2033"]
[BlackElo "2227"]
[Annotator "NA RC"]
[PlyCount "88"]
[EventDate "2024.02.15"]
[EventType "team-tourn"]
[EventCountry "GER"]
[SourceTitle "playchess.com"]
[Source "ChessBase"]
[SourceQuality "1"]
[WhiteTeam "Italy"]
[BlackTeam "Germany"]
[WhiteTeamCountry "ITA"]
[BlackTeamCountry "GER"]
[TimeControl "40/5400+30:1800+30"]

1. Nf3 {[%emt 0:00:07]} d5 {[%emt 0:00:16]} 2. g3 {[%emt 0:00:07]} Bg4 {[%emt 0:00:08]} 3. Bg2 {[%emt 0:01:02]} c6 {[%emt 0:00:38]} 4. O-O {[%emt 0:00:19]} Nf6 {[%emt 0:00:47]} 5. h3 {[%emt 0:02:16]} Bh5 {[%emt 0:01:56]} 6. d4 {[%emt 0:02:01]} e6 {[%emt 0:02:44]} 7. c4 {[%emt 0:00:50]} Nbd7 {[%emt 0:02:21]} 8. cxd5 {[%emt 0:02:01]} cxd5 {[%emt 0:04:41]} 9. Qb3 {[%emt 0:07:00]} Qb6 {[%emt 0:03:25]} 10. Bf4 {[%emt 0:03:04]} Rc8 {[%emt 0:10:45]} 11. Nc3 {[%emt 0:13:26]} Be7 {[%emt 0:04:57]} 12. Qxb6 {[%emt 0:12:30]} Nxb6 {[%emt 0:00:43]} 13. Ne5 {[%emt 0:01:23]} Nc4 {[%emt 0:05:08]} 14. g4 {[%emt 0:08:42]} Bg6 {[%emt 0:04:50]} 15. Rac1 {[%emt 0:05:42]} O-O {[%emt 0:05:22]} 16. Nxg6 {[%emt 0:05:55]} hxg6 {[%emt 0:00:29]} 17. b3 {[%emt 0:01:34]} Na3 {[%emt 0:02:09]} 18. Rfd1 {[%emt 0:11:38]} b5 {[%emt 0:02:08]} 19. Nb1 {[%emt 0:03:25]} Nxb1 {[%emt 0:02:52]} 20. Rxb1 {[%emt 0:00:05]} Rc2 {[%emt 0:00:05]} 21. Rd2 {[%emt 0:02:34]} Rfc8 {[%emt 0:00:14]} 22. Rxc2 {[%emt 0:05:18]} Rxc2 {[%emt 0:00:07]} 23. Rc1 {[%emt 0:00:03]} Rxa2 {[%emt 0:04:33]} 24. Rc8+ {[%emt 0:01:26]} Kh7 {[%emt 0:00:10]} 25. Rc7 {[%emt 0:00:57]} Ng8 {[%emt 0:03:17]} 26. e4 {[%emt 0:00:21]} Ra1+ {[%emt 0:06:25]} 27. Kh2 {[%emt 0:00:06]} dxe4 {[%emt 0:05:52]} 28. Bxe4 {[%emt 0:00:11]} Rd1 {[%emt 0:00:36]} 29. Rxa7 {[%emt 0:06:39]} Rxd4 {[%emt 0:00:13]} 30. f3 {[%emt 0:00:03]} f5 {[%emt 0:01:36]} 31. Be3 {[%emt 0:00:13]} Rd1 {[%emt 0:01:21]} 32. Bc6 {[%emt 0:01:13]} Rd3 {[%emt 0:01:32]} 33. Bf4 {[%emt 0:00:54]} Rxb3 {[%emt 0:01:11]} 34. g5 {[%emt 0:00:25]} Bc5 {[%emt 0:04:30]} 35. Rf7 {[%emt 0:00:59]} Ne7 {[%emt 0:04:29]} 36. Bd7 {[%emt 0:00:50]} Rb2+ {[%emt 0:00:48]} 37. Kh1 {[%emt 0:02:07]} Re2 {[%emt 0:01:40]} 38. Bxb5 {[%emt 0:01:27]} Re1+ {[%emt 0:00:03]} 39. Kg2 {[%emt 0:00:15]} Kg8 {[%emt 0:00:57]} 40. Be8 {[%emt 0:00:44]} Re2+ {[%emt 0:05:45]} 41. Kh1 {[%emt 0:13:21]} e5 {[%emt 0:00:43]} 42. Bg3 {[%emt 0:01:34]} f4 {[%emt 0:00:34]} 43. Bxf4 {[%emt 0:00:54]} exf4 {[%emt 0:00:52]} 44. Rxf4 {[%emt 0:02:36]} Nf5 {[%emt 0:00:09]} 0-1

[Event "Mitropa Cup Women 2024"]
[Site "Apolda"]
[Date "2024.02.15"]
[Round "1.5"]
[White "Walter, Ema"]
[Black "Demeter, Dorina"]
[Result "0-1"]
[ECO "C45"]
[WhiteElo "2124"]
[BlackElo "2271"]
[Annotator "NA RC"]
[PlyCount "70"]
[EventDate "2024.02.15"]
[EventType "team-tourn"]
[EventCountry "GER"]
[SourceTitle "playchess.com"]
[Source "ChessBase"]
[SourceQuality "1"]
[WhiteTeam "Slovakia"]
[BlackTeam "Hungary"]
[WhiteTeamCountry "SVK"]
[BlackTeamCountry "HUN"]
[TimeControl "40/5400+30:1800+30"]

1. e4 {[%emt 0:00:03]} e5 {[%emt 0:00:08]} 2. Nf3 {[%emt 0:00:07]} Nc6 {[%emt 0:00:06]} 3. d4 {[%emt 0:00:05]} exd4 {[%emt 0:00:17]} 4. Nxd4 {[%emt 0:00:07]} Nf6 {[%emt 0:00:22]} 5. Nxc6 {[%emt 0:00:11]} bxc6 {[%emt 0:00:05]} 6. Bd3 {[%emt 0:00:05]} d5 {[%emt 0:00:16]} 7. exd5 {[%emt 0:00:10]} cxd5 {[%emt 0:00:18]} 8. O-O {[%emt 0:00:08]} Be7 {[%emt 0:00:33]} 9. Re1 {[%emt 0:00:06]} O-O {[%emt 0:00:41]} 10. h3 {[%emt 0:01:39]} h6 {[%emt 0:00:23]} 11. Nd2 {[%emt 0:01:34]} c5 {[%emt 0:04:46]} 12. b3 {[%emt 0:03:03]} Be6 {[%emt 0:03:39]} 13. Bb2 {[%emt 0:05:38]} Rb8 {[%emt 0:02:38]} 14. Be5 {[%emt 0:02:39]} Bd6 {[%emt 0:01:32]} 15. Nf3 {[%emt 0:06:16]} Re8 {[%emt 0:06:59]} 16. c4 {[%emt 0:12:11]} d4 {[%emt 0:01:43]} 17. Qc2 {[%emt 0:06:39]} Bxe5 {[%emt 0:12:50]} 18. Nxe5 {[%emt 0:01:15]} Qc7 {[%emt 0:03:12]} 19. Bf5 {[%emt 0:13:05]} Rb6 {[%emt 0:04:06]} 20. Rad1 {[%emt 0:12:20]} Bxf5 {[%emt 0:12:15]} 21. Qxf5 {[%emt 0:00:04]} g6 {[%emt 0:03:27]} 22. Nxg6 {[%emt 0:15:18]} Rxe1+ {[%emt 0:00:56]} 23. Rxe1 {[%emt 0:00:05]} fxg6 {[%emt 0:00:06]} 24. Qxg6+ {[%emt 0:00:04]} Qg7 {[%emt 0:00:21]} 25. Qf5 {[%emt 0:00:41]} Rd6 {[%emt 0:06:32]} 26. Qc8+ {[%emt 0:05:32]} Qf8 {[%emt 0:01:12]} 27. Qxc5 {[%emt 0:00:36]} d3 {[%emt 0:02:52]} 28. Qxa7 {[%emt 0:03:10]} d2 {[%emt 0:02:04]} 29. Rd1 {[%emt 0:00:07]} Qe8 {[%emt 0:03:48]} 30. Kh2 {[%emt 0:02:34]} Qe5+ {[%emt 0:01:42]} 31. g3 {[%emt 0:01:31]} Qe2 {[%emt 0:01:28]} 32. Qb8+ {[%emt 0:05:24]} Kg7 {[%emt 0:03:38]} 33. Qxd6 {[%emt 0:00:48]} Qxf2+ {[%emt 0:00:12]} 34. Kh1 {[%emt 0:00:10]} Qf3+ {[%emt 0:00:14]} 35. Kh2 {[%emt 0:00:07]} Qe2+ {[%emt 0:00:05]} 0-1

[Event "Mitropa Cup Women 2024"]
[Site "Apolda"]
[Date "2024.02.15"]
[Round "1.6"]
[White "Terbe, Zsuzsanna"]
[Black "Sankova, Stella"]
[Result "1-0"]
[ECO "E51"]
[WhiteElo "2170"]
[BlackElo "2124"]
[Annotator "NA RC"]
[PlyCount "105"]
[EventDate "2024.02.15"]
[EventType "team-tourn"]
[EventCountry "GER"]
[SourceTitle "playchess.com"]
[Source "ChessBase"]
[SourceQuality "1"]
[WhiteTeam "Hungary"]
[BlackTeam "Slovakia"]
[WhiteTeamCountry "HUN"]
[BlackTeamCountry "SVK"]
[TimeControl "40/5400+30:1800+30"]

1. d4 {[%emt 0:00:03]} Nf6 {[%emt 0:00:05]} 2. c4 {[%emt 0:00:12]} e6 {[%emt 0:00:05]} 3. Nc3 {[%emt 0:00:04]} Bb4 {[%emt 0:00:05]} 4. e3 {[%emt 0:00:16]} O-O {[%emt 0:00:13]} 5. Bd2 {[%emt 0:00:10]} d5 {[%emt 0:00:07]} 6. Nf3 {[%emt 0:00:21]} b6 {[%emt 0:00:05]} 7. cxd5 {[%emt 0:00:11]} exd5 {[%emt 0:00:16]} 8. Rc1 {[%emt 0:01:14]} Bf5 {[%emt 0:03:16]} 9. Ne5 {[%emt 0:06:04]} Bd6 {[%emt 0:10:05]} 10. Be2 {[%emt 0:22:02]} Bxe5 {[%emt 0:06:48]} 11. dxe5 {[%emt 0:00:13]} Ne4 {[%emt 0:00:06]} 12. O-O {[%emt 0:10:01]} c5 {[%emt 0:02:25]} 13. f3 {[%emt 0:05:13]} Nxc3 {[%emt 0:02:02]} 14. Bxc3 {[%emt 0:00:16]} Nc6 {[%emt 0:00:26]} 15. Qa4 {[%emt 0:05:21]} Qg5 {[%emt 0:16:32]} 16. f4 {[%emt 0:06:47]} Qg6 {[%emt 0:00:08]} 17. Bf3 {[%emt 0:09:38]} Rfd8 {[%emt 0:03:12]} 18. Kh1 {[%emt 0:03:15]} Ne7 {[%emt 0:06:44]} 19. h3 {[%emt 0:08:31]} Bd7 {[%emt 0:08:12]} 20. Qb3 {[%emt 0:07:05]} Nf5 {[%emt 0:09:15]} 21. Be1 {[%emt 0:00:37]} Bc6 {[%emt 0:02:40]} 22. g4 {[%emt 0:01:17]} Ne7 {[%emt 0:00:48]} 23. Bh4 {[%emt 0:04:58]} Qe6 {[%emt 0:02:46]} 24. Kh2 {[%emt 0:00:58]} Rd7 {[%emt 0:03:02]} 25. Qc2 {[%emt 0:08:13]} Ng6 {[%emt 0:02:41]} 26. Bg3 {[%emt 0:00:00]} Qe7 {[%emt 0:00:11]} 27. Rf2 {[%emt 0:00:00]} h6 {[%emt 0:08:54]} 28. Rd1 {[%emt 0:00:00]} Rad8 {[%emt 0:00:33]} 29. Rfd2 {[%emt 0:00:00]} Nf8 {[%emt 0:00:15]} 30. f5 {[%emt 0:00:49]} Qg5 {[%emt 0:03:50]} 31. Qb3 {[%emt 0:00:44]} c4 {[%emt 0:01:35]} 32. Qc3 {[%emt 0:00:24]} g6 {[%emt 0:00:52]} 33. Bf4 {[%emt 0:00:42]} Qh4 {[%emt 0:00:06]} 34. Bg3 {[%emt 0:00:15]} Qe7 {[%emt 0:00:37]} 35. Rd4 {[%emt 0:00:18]} Qc5 {[%emt 0:01:14]} 36. Qc2 {[%emt 0:00:45]} Qa5 {[%emt 0:02:43]} 37. Qb1 {[%emt 0:00:36]} b5 {[%emt 0:02:00]} 38. Bh4 {[%emt 0:00:30]} Re8 {[%emt 0:00:41]} 39. Bxd5 {[%emt 0:00:47]} Bxd5 {[%emt 0:00:38]} 40. Rxd5 {[%emt 0:00:04]} Rxd5 {[%emt 0:00:41]} 41. Rxd5 {[%emt 0:30:06]} c3 {[%emt 0:32:10]} 42. bxc3 {[%emt 0:00:00]} Qxc3 {[%emt 0:00:00]} 43. Qb3 {[%emt 0:00:00]} Qc1 {[%emt 0:00:00]} 44. Rd1 {[%emt 0:00:00]} Qc6 {[%emt 0:00:00]} 45. Bg3 {[%emt 0:00:00]} Qf3 {[%emt 0:00:00]} 46. Qd3 {[%emt 0:00:00]} Rc8 {[%emt 0:00:00]} 47. Rf1 {[%emt 0:00:00]} Qc6 {[%emt 0:00:00]} 48. Rf2 {[%emt 0:00:00]} Qa6 {[%emt 0:00:00]} 49. Qd6 {[%emt 0:00:00]} Rc6 {[%emt 0:00:00]} 50. Qe7 {[%emt 0:00:00]} gxf5 {[%emt 0:00:00]} 51. gxf5 {[%emt 0:00:00]} Qc8 {[%emt 0:00:00]} 52. e6 {[%emt 0:00:00]} fxe6 {[%emt 0:00:00]} 53. Be5 {[%emt 0:00:00]} 1-0

[Event "Mitropa Cup Women 2024"]
[Site "Apolda"]
[Date "2024.02.15"]
[Round "1.7"]
[White "Sevcikova, Lucia"]
[Black "Ivan-Gal, Hanna Krisztina"]
[Result "1/2-1/2"]
[ECO "D34"]
[WhiteElo "2007"]
[BlackElo "2191"]
[Annotator "NA RC"]
[PlyCount "80"]
[EventDate "2024.02.15"]
[EventType "team-tourn"]
[EventCountry "GER"]
[SourceTitle "playchess.com"]
[Source "ChessBase"]
[SourceQuality "1"]
[WhiteTeam "Slovakia"]
[BlackTeam "Hungary"]
[WhiteTeamCountry "SVK"]
[BlackTeamCountry "HUN"]
[TimeControl "40/5400+30:1800+30"]

1. d4 {[%emt 0:00:03]} d5 {[%emt 0:00:10]} 2. c4 {[%emt 0:00:07]} e6 {[%emt 0:00:11]} 3. Nc3 {[%emt 0:00:06]} c5 {[%emt 0:00:08]} 4. cxd5 {[%emt 0:00:13]} exd5 {[%emt 0:00:07]} 5. Nf3 {[%emt 0:00:09]} Nc6 {[%emt 0:00:12]} 6. g3 {[%emt 0:02:27]} Nf6 {[%emt 0:00:14]} 7. Bg2 {[%emt 0:01:24]} Be7 {[%emt 0:00:10]} 8. dxc5 {[%emt 0:04:55]} Bxc5 {[%emt 0:00:19]} 9. O-O {[%emt 0:03:56]} O-O {[%emt 0:00:41]} 10. Bg5 {[%emt 0:02:56]} d4 {[%emt 0:01:55]} 11. Bxf6 {[%emt 0:03:24]} Qxf6 {[%emt 0:00:09]} 12. Ne4 {[%emt 0:00:28]} Qe7 {[%emt 0:00:18]} 13. Nxc5 {[%emt 0:00:34]} Qxc5 {[%emt 0:00:09]} 14. Qd2 {[%emt 0:04:52]} Bg4 {[%emt 0:27:26]} 15. Rac1 {[%emt 0:11:25]} Qb6 {[%emt 0:02:30]} 16. h3 {[%emt 0:08:00]} Be6 {[%emt 0:03:23]} 17. b3 {[%emt 0:01:28]} Rad8 {[%emt 0:12:43]} 18. Ne1 {[%emt 0:14:23]} Qb4 {[%emt 0:11:31]} 19. Rc2 {[%emt 0:06:23]} Qd6 {[%emt 0:07:49]} 20. Nd3 {[%emt 0:02:18]} Bd5 {[%emt 0:02:55]} 21. Bxd5 {[%emt 0:05:17]} Qxd5 {[%emt 0:00:07]} 22. Rfc1 {[%emt 0:01:27]} Rfe8 {[%emt 0:05:53]} 23. Nf4 {[%emt 0:04:20]} Qe4 {[%emt 0:02:51]} 24. Qd3 {[%emt 0:02:31]} Qe7 {[%emt 0:01:39]} 25. Qf5 {[%emt 0:06:05]} g6 {[%emt 0:08:41]} 26. Qc5 {[%emt 0:02:05]} Kg7 {[%emt 0:02:34]} 27. Qxe7 {[%emt 0:02:40]} Rxe7 {[%emt 0:00:04]} 28. Nd3 {[%emt 0:02:40]} Rde8 {[%emt 0:03:01]} 29. Kf1 {[%emt 0:00:12]} h5 {[%emt 0:02:59]} 30. h4 {[%emt 0:01:34]} Nd8 {[%emt 0:01:51]} 31. Nf4 {[%emt 0:03:52]} Nc6 {[%emt 0:00:16]} 32. a3 {[%emt 0:00:58]} d3 {[%emt 0:01:24]} 33. exd3 {[%emt 0:01:15]} Nd4 {[%emt 0:00:18]} 34. Rb2 {[%emt 0:01:23]} Rd7 {[%emt 0:01:19]} 35. b4 {[%emt 0:01:08]} Red8 {[%emt 0:00:06]} 36. Kg2 {[%emt 0:00:48]} Kf6 {[%emt 0:00:47]} 37. Rc5 {[%emt 0:00:36]} Ne6 {[%emt 0:00:40]} 38. Rc4 {[%emt 0:00:22]} Nxf4+ {[%emt 0:00:24]} 39. Rxf4+ {[%emt 0:00:04]} Kg7 {[%emt 0:00:05]} 40. Re2 {[%emt 0:00:00]} Rxd3 {[%emt 0:00:00]} 1/2-1/2